[Event "Titled Tuesday Blitz February 28 Late 2023"]
[White "Jenkins, Drake"]
[Black "Vargas, Mauricio"]
[WhiteFideId "2022397"]
[BlackFideId "4404572"]
[WhiteElo "2301"]
[BlackElo "2025"]
[Result "1-0"]
[Round "04"]
[TimeControl "180+2"]
[Date "2023.02.28"]
[WhiteClock "0:01:47"]
[BlackClock "0:00:19"]

1. Nf3 {[%clk 0:03:00]}  c5 {[%clk 0:03:00]} 2. c4 {[%clk 0:03:01]}  Nc6 {[%clk 0:02:59]} 3. d4 {[%clk 0:03:01]}  cxd4 {[%clk 0:02:59]} 4. Nxd4 {[%clk 0:03:02]}  g6 {[%clk 0:02:54]} 5. Nc3 {[%clk 0:03:01]}  Bg7 {[%clk 0:02:54]} 6. Nc2 {[%clk 0:03:02]}  d6 {[%clk 0:02:47]} 7. Bd2 {[%clk 0:02:58]}  h6 {[%clk 0:02:44]} 8. g3 {[%clk 0:02:57]}  Nf6 {[%clk 0:02:44]} 9. Bg2 {[%clk 0:02:57]}  O-O {[%clk 0:02:44]} 10. O-O {[%clk 0:02:58]}  Bg4 {[%clk 0:02:42]} 11. h3 {[%clk 0:02:57]}  Be6 {[%clk 0:02:40]} 12. b3 {[%clk 0:02:57]}  Qd7 {[%clk 0:02:40]} 13. Kh2 {[%clk 0:02:57]}  a6 {[%clk 0:02:20]} 14. Rc1 {[%clk 0:02:57]}  Rac8 {[%clk 0:02:19]} 15. Ne3 {[%clk 0:02:48]}  Nh7 {[%clk 0:01:59]} 16. Ned5 {[%clk 0:02:42]}  Rcd8 {[%clk 0:01:41]} 17. Nf4 {[%clk 0:02:33]}  g5 {[%clk 0:01:32]} 18. Nxe6 {[%clk 0:02:32]}  Qxe6 {[%clk 0:01:33]} 19. Nd5 {[%clk 0:02:23]}  g4 {[%clk 0:01:27]} 20. h4 {[%clk 0:02:17]}  Nf6 {[%clk 0:01:06]} 21. Nf4 {[%clk 0:02:15]}  Qd7 {[%clk 0:01:02]} 22. Bc3 {[%clk 0:02:00]}  b5 {[%clk 0:00:54]} 23. cxb5 {[%clk 0:01:56]}  axb5 {[%clk 0:00:53]} 24. Bxc6 {[%clk 0:01:54]}  Qxc6 {[%clk 0:00:47]} 25. Bxf6 {[%clk 0:01:54]}  Qe4 {[%clk 0:00:20]} 26. Bxg7 {[%clk 0:01:51]}  Kxg7 {[%clk 0:00:19]} 27. Qd5 {[%clk 0:01:47]} 1-0


[Site "https://www.chess.com"]

[Event "Titled Tuesday Blitz February 28 Late 2023"]
[White "tandercat"]
[Black "Awoki, Daniel Teidi"]
[BlackFideId "2100827"]
[WhiteElo "1875"]
[BlackElo "2083"]
[Result "0-1"]
[Round "04"]
[TimeControl "180+2"]
[Date "2023.02.28"]
[WhiteClock "0:00:10"]
[BlackClock "0:01:00"]

1. d4 {[%clk 0:03:00]}  Nf6 {[%clk 0:02:55]} 2. c4 {[%clk 0:03:00]}  e6 {[%clk 0:02:55]} 3. Nc3 {[%clk 0:03:00]}  d5 {[%clk 0:02:54]} 4. cxd5 {[%clk 0:02:59]}  exd5 {[%clk 0:02:55]} 5. Bg5 {[%clk 0:02:59]}  Nbd7 {[%clk 0:02:54]} 6. e3 {[%clk 0:02:59]}  Be7 {[%clk 0:02:54]} 7. Bd3 {[%clk 0:02:59]}  c6 {[%clk 0:02:54]} 8. Qc2 {[%clk 0:02:54]}  O-O {[%clk 0:02:54]} 9. Nge2 {[%clk 0:02:53]}  Re8 {[%clk 0:02:54]} 10. O-O {[%clk 0:02:41]}  Nf8 {[%clk 0:02:55]} 11. f3 {[%clk 0:02:41]}  h6 {[%clk 0:02:53]} 12. Bh4 {[%clk 0:02:40]}  Ne6 {[%clk 0:02:45]} 13. Rad1 {[%clk 0:02:23]}  a6 {[%clk 0:02:45]} 14. a3 {[%clk 0:02:21]}  c5 {[%clk 0:02:39]} 15. Qc1 {[%clk 0:01:58]}  cxd4 {[%clk 0:02:37]} 16. Nxd4 {[%clk 0:01:42]}  Nxd4 {[%clk 0:02:37]} 17. exd4 {[%clk 0:01:40]}  Be6 {[%clk 0:02:36]} 18. Bb1 {[%clk 0:01:32]}  Nd7 {[%clk 0:02:32]} 19. Qc2 {[%clk 0:01:26]}  Nf8 {[%clk 0:02:32]} 20. Bxe7 {[%clk 0:01:23]}  Qxe7 {[%clk 0:02:31]} 21. Rfe1 {[%clk 0:01:22]}  Qd6 {[%clk 0:02:30]} 22. Na4 {[%clk 0:01:12]}  Rac8 {[%clk 0:02:26]} 23. Qb3 {[%clk 0:01:09]}  b5 {[%clk 0:02:03]} 24. Nc3 {[%clk 0:00:54]}  Rc4 {[%clk 0:01:52]} 25. Bd3 {[%clk 0:00:49]}  Rcc8 {[%clk 0:01:51]} 26. Qc2 {[%clk 0:00:44]}  Qb6 {[%clk 0:01:48]} 27. Qf2 {[%clk 0:00:44]}  Red8 {[%clk 0:01:43]} 28. h3 {[%clk 0:00:41]}  g6 {[%clk 0:01:41]} 29. Ne2 {[%clk 0:00:41]}  Kg7 {[%clk 0:01:39]} 30. Nf4 {[%clk 0:00:40]}  Rc7 {[%clk 0:01:29]} 31. Bb1 {[%clk 0:00:39]}  Rcd7 {[%clk 0:01:24]} 32. Nd3 {[%clk 0:00:38]}  Rc7 {[%clk 0:01:21]} 33. Qe3 {[%clk 0:00:37]}  Bf5 {[%clk 0:01:18]} 34. Ne5 {[%clk 0:00:23]}  Bxb1 {[%clk 0:01:16]} 35. Rxb1 {[%clk 0:00:23]}  Ne6 {[%clk 0:01:09]} 36. f4 {[%clk 0:00:20]}  Qxd4 {[%clk 0:01:06]} 37. Qxd4 {[%clk 0:00:17]}  Nxd4 {[%clk 0:01:07]} 38. Rbd1 {[%clk 0:00:16]}  Ne6 {[%clk 0:01:06]} 39. f5 {[%clk 0:00:16]}  gxf5 {[%clk 0:01:06]} 40. Nd3 {[%clk 0:00:12]}  Rc2 {[%clk 0:01:03]} 41. Nf4 {[%clk 0:00:10]}  Nxf4 {[%clk 0:01:00]} 0-1


[Site "https://www.chess.com"]

[Event "Titled Tuesday Blitz February 28 Late 2023"]
[White "Firouzja, Alireza"]
[Black "Rustemov, Alexander"]
[WhiteFideId "12573981"]
[BlackFideId "4119002"]
[WhiteElo "2904"]
[BlackElo "2918"]
[Result "1-0"]
[Round "05"]
[TimeControl "180+2"]
[Date "2023.02.28"]
[WhiteClock "0:00:42"]
[BlackClock "0:00:27"]

1. d4 {[%clk 0:02:59]}  d5 {[%clk 0:02:59]} 2. c4 {[%clk 0:02:57]}  c6 {[%clk 0:03:00]} 3. Nf3 {[%clk 0:02:58]}  Nf6 {[%clk 0:03:00]} 4. e3 {[%clk 0:02:58]}  a6 {[%clk 0:02:58]} 5. Bd3 {[%clk 0:02:53]}  Bg4 {[%clk 0:02:57]} 6. h3 {[%clk 0:02:53]}  Bh5 {[%clk 0:02:56]} 7. Qb3 {[%clk 0:02:47]}  Qc7 {[%clk 0:02:50]} 8. Ne5 {[%clk 0:02:43]}  e6 {[%clk 0:02:48]} 9. Nc3 {[%clk 0:02:40]}  Nbd7 {[%clk 0:02:47]} 10. g4 {[%clk 0:02:38]}  Bg6 {[%clk 0:02:47]} 11. Nxg6 {[%clk 0:02:38]}  hxg6 {[%clk 0:02:47]} 12. g5 {[%clk 0:02:39]}  dxc4 {[%clk 0:02:44]} 13. Bxc4 {[%clk 0:02:39]}  Nd5 {[%clk 0:02:44]} 14. e4 {[%clk 0:02:34]}  N5b6 {[%clk 0:02:24]} 15. Be2 {[%clk 0:02:29]}  c5 {[%clk 0:02:23]} 16. d5 {[%clk 0:02:16]}  exd5 {[%clk 0:02:20]} 17. Nxd5 {[%clk 0:02:11]}  Nxd5 {[%clk 0:02:19]} 18. Qxd5 {[%clk 0:02:12]}  Nb6 {[%clk 0:01:50]} 19. Qb3 {[%clk 0:02:12]}  Bd6 {[%clk 0:01:34]} 20. Be3 {[%clk 0:02:10]}  O-O {[%clk 0:01:34]} 21. h4 {[%clk 0:02:00]}  Qc6 {[%clk 0:01:21]} 22. h5 {[%clk 0:01:45]}  Qxe4 {[%clk 0:01:14]} 23. Rh3 {[%clk 0:01:46]}  Nd5 {[%clk 0:01:04]} 24. Bf3 {[%clk 0:01:10]}  Qb4+ {[%clk 0:00:56]} 25. Qxb4 {[%clk 0:01:10]}  Nxb4 {[%clk 0:00:56]} 26. O-O-O {[%clk 0:01:11]}  Rfd8 {[%clk 0:00:30]} 27. a3 {[%clk 0:00:56]}  Nc6 {[%clk 0:00:29]} 28. hxg6 {[%clk 0:00:56]}  fxg6 {[%clk 0:00:29]} 29. Bd5+ {[%clk 0:00:41]}  Kf8 {[%clk 0:00:29]} 30. Bxc6 {[%clk 0:00:41]}  bxc6 {[%clk 0:00:27]} 31. Rxd6 {[%clk 0:00:41]}  Rxd6 {[%clk 0:00:27]} 32. Rh8+ {[%clk 0:00:42]} 1-0


[Site "https://www.chess.com"]

[Event "Titled Tuesday Blitz February 28 Late 2023"]
[White "Martinez Alcantara, Jose Eduardo"]
[Black "Indjic, Aleksandar"]
[WhiteFideId "3805662"]
[BlackFideId "911925"]
[WhiteElo "2712"]
[BlackElo "2625"]
[Result "1-0"]
[Round "05"]
[TimeControl "180+2"]
[Date "2023.02.28"]
[WhiteClock "0:00:53"]
[BlackClock "0:00:17"]

1. e4 {[%clk 0:02:59]}  e5 {[%clk 0:03:00]} 2. Nf3 {[%clk 0:03:00]}  Nc6 {[%clk 0:03:00]} 3. Nc3 {[%clk 0:03:01]}  Nf6 {[%clk 0:03:01]} 4. h3 {[%clk 0:03:02]}  d5 {[%clk 0:02:58]} 5. exd5 {[%clk 0:03:02]}  Nxd5 {[%clk 0:02:59]} 6. Bb5 {[%clk 0:03:02]}  Nxc3 {[%clk 0:03:00]} 7. bxc3 {[%clk 0:03:03]}  Bd6 {[%clk 0:02:59]} 8. O-O {[%clk 0:03:02]}  O-O {[%clk 0:02:59]} 9. d4 {[%clk 0:03:03]}  exd4 {[%clk 0:02:57]} 10. cxd4 {[%clk 0:03:04]}  Qf6 {[%clk 0:02:37]} 11. c4 {[%clk 0:02:45]}  h6 {[%clk 0:02:31]} 12. Bb2 {[%clk 0:02:33]}  a6 {[%clk 0:02:30]} 13. Ba4 {[%clk 0:02:33]}  Rb8 {[%clk 0:01:45]} 14. Re1 {[%clk 0:01:39]}  b5 {[%clk 0:01:43]} 15. cxb5 {[%clk 0:01:40]}  axb5 {[%clk 0:01:43]} 16. Bc2 {[%clk 0:01:41]}  Nb4 {[%clk 0:01:41]} 17. Bb3 {[%clk 0:01:36]}  Qg6 {[%clk 0:01:34]} 18. Re3 {[%clk 0:01:29]}  Bb7 {[%clk 0:01:21]} 19. d5 {[%clk 0:01:21]}  Rbd8 {[%clk 0:01:21]} 20. Ne5 {[%clk 0:01:07]}  Bxe5 {[%clk 0:00:46]} 21. Bxe5 {[%clk 0:01:08]}  Qb6 {[%clk 0:00:23]} 22. Qg4 {[%clk 0:00:57]}  g6 {[%clk 0:00:18]} 23. Qxb4 {[%clk 0:00:56]}  Bc6 {[%clk 0:00:16]} 24. dxc6 {[%clk 0:00:53]}  Qxe3 {[%clk 0:00:17]} 25. fxe3 {[%clk 0:00:53]}  Rd1+ {[%clk 0:00:17]} 26. Rxd1 {[%clk 0:00:53]} 1-0


[Site "https://www.chess.com"]

[Event "Titled Tuesday Blitz February 28 Late 2023"]
[White "Perez Ponsa, Federico"]
[Black "Bortnyk, Olexandr"]
[WhiteFideId "117927"]
[BlackFideId "14120828"]
[WhiteElo "2592"]
[BlackElo "2734"]
[Result "0-1"]
[Round "05"]
[TimeControl "180+2"]
[Date "2023.02.28"]
[WhiteClock "0:00:11"]
[BlackClock "0:00:12"]

1. e4 {[%clk 0:02:39]}  d6 {[%clk 0:03:00]} 2. d4 {[%clk 0:02:39]}  Nf6 {[%clk 0:03:01]} 3. Nc3 {[%clk 0:02:39]}  e5 {[%clk 0:03:02]} 4. Nf3 {[%clk 0:02:39]}  Nbd7 {[%clk 0:03:02]} 5. Rg1 {[%clk 0:02:39]}  c6 {[%clk 0:02:59]} 6. g4 {[%clk 0:02:39]}  exd4 {[%clk 0:02:59]} 7. Nxd4 {[%clk 0:02:39]}  h6 {[%clk 0:02:59]} 8. h4 {[%clk 0:02:38]}  Ne5 {[%clk 0:02:59]} 9. g5 {[%clk 0:02:34]}  hxg5 {[%clk 0:02:56]} 10. hxg5 {[%clk 0:02:34]}  Nfg4 {[%clk 0:02:54]} 11. Be2 {[%clk 0:02:26]}  Qb6 {[%clk 0:02:45]} 12. f3 {[%clk 0:01:57]}  Nh2 {[%clk 0:02:38]} 13. Be3 {[%clk 0:01:41]}  Qxb2 {[%clk 0:02:25]} 14. Kd2 {[%clk 0:01:20]}  d5 {[%clk 0:02:06]} 15. Rb1 {[%clk 0:01:19]}  Qa3 {[%clk 0:02:05]} 16. Rb3 {[%clk 0:01:08]}  Qa5 {[%clk 0:02:05]} 17. exd5 {[%clk 0:01:08]}  Bc5 {[%clk 0:01:49]} 18. Kc1 {[%clk 0:01:00]}  Bd7 {[%clk 0:01:38]} 19. f4 {[%clk 0:00:49]}  Rh3 {[%clk 0:01:31]} 20. Ne4 {[%clk 0:00:43]}  Ba3+ {[%clk 0:00:52]} 21. Kb1 {[%clk 0:00:43]}  Neg4 {[%clk 0:00:45]} 22. Bd2 {[%clk 0:00:26]}  Rxb3+ {[%clk 0:00:43]} 23. Nxb3 {[%clk 0:00:27]}  Qxd5 {[%clk 0:00:43]} 24. Nc3 {[%clk 0:00:18]}  Qd6 {[%clk 0:00:34]} 25. Ne4 {[%clk 0:00:12]}  Qe7 {[%clk 0:00:30]} 26. Bd3 {[%clk 0:00:08]}  O-O-O {[%clk 0:00:29]} 27. Bc3 {[%clk 0:00:08]}  Bf5 {[%clk 0:00:27]} 28. Qe2 {[%clk 0:00:06]}  Kb8 {[%clk 0:00:24]} 29. Bxg7 {[%clk 0:00:05]}  Ka8 {[%clk 0:00:19]} 30. Re1 {[%clk 0:00:05]}  a6 {[%clk 0:00:17]} 31. Bc3 {[%clk 0:00:05]}  Qc7 {[%clk 0:00:14]} 32. Nf6 {[%clk 0:00:04]}  Bxd3 {[%clk 0:00:13]} 33. cxd3 {[%clk 0:00:05]}  Qxf4 {[%clk 0:00:12]} 34. Nxg4 {[%clk 0:00:05]}  Nxg4 {[%clk 0:00:13]} 35. Rf1 {[%clk 0:00:05]}  Qxg5 {[%clk 0:00:13]} 36. Rg1 {[%clk 0:00:06]}  f5 {[%clk 0:00:13]} 37. Ba5 {[%clk 0:00:06]}  Rf8 {[%clk 0:00:10]} 38. Bd2 {[%clk 0:00:06]}  Qf6 {[%clk 0:00:10]} 39. Bf4 {[%clk 0:00:07]}  Rd8 {[%clk 0:00:09]} 40. Qc2 {[%clk 0:00:07]}  Qe7 {[%clk 0:00:07]} 41. d4 {[%clk 0:00:07]}  Qb4 {[%clk 0:00:06]} 42. Qxf5 {[%clk 0:00:06]}  Nf2 {[%clk 0:00:05]} 43. Qc2 {[%clk 0:00:04]}  Nh3 {[%clk 0:00:05]} 44. Rf1 {[%clk 0:00:04]}  Nxf4 {[%clk 0:00:05]} 45. Rxf4 {[%clk 0:00:03]}  Qe1+ {[%clk 0:00:06]} 46. Nc1 {[%clk 0:00:04]}  Rd5 {[%clk 0:00:06]} 47. Rf3 {[%clk 0:00:04]}  Bxc1 {[%clk 0:00:06]} 48. Qxc1 {[%clk 0:00:03]}  Qxc1+ {[%clk 0:00:07]} 49. Kxc1 {[%clk 0:00:04]}  Rxd4 {[%clk 0:00:07]} 50. Rf8+ {[%clk 0:00:04]}  Ka7 {[%clk 0:00:08]} 51. Rf3 {[%clk 0:00:05]}  a5 {[%clk 0:00:07]} 52. Kb2 {[%clk 0:00:06]}  b5 {[%clk 0:00:07]} 53. a3 {[%clk 0:00:07]}  a4 {[%clk 0:00:07]} 54. Rf8 {[%clk 0:00:07]}  Kb6 {[%clk 0:00:08]} 55. Rb8+ {[%clk 0:00:07]}  Kc5 {[%clk 0:00:08]} 56. Rf8 {[%clk 0:00:08]}  Kc4 {[%clk 0:00:08]} 57. Rf2 {[%clk 0:00:08]}  c5 {[%clk 0:00:08]} 58. Rc2+ {[%clk 0:00:09]}  Kd5 {[%clk 0:00:09]} 59. Rh2 {[%clk 0:00:09]}  b4 {[%clk 0:00:09]} 60. Rh5+ {[%clk 0:00:10]}  Kc4 {[%clk 0:00:09]} 61. Rh2 {[%clk 0:00:10]}  Rd3 {[%clk 0:00:09]} 62. Rh4+ {[%clk 0:00:08]}  Kb5 {[%clk 0:00:10]} 63. axb4 {[%clk 0:00:08]}  cxb4 {[%clk 0:00:10]} 64. Rh5+ {[%clk 0:00:09]}  Kc4 {[%clk 0:00:11]} 65. Rh4+ {[%clk 0:00:10]}  Rd4 {[%clk 0:00:11]} 66. Rh2 {[%clk 0:00:11]}  a3+ {[%clk 0:00:10]} 67. Ka2 {[%clk 0:00:11]}  Kc3 {[%clk 0:00:11]} 68. Rh3+ {[%clk 0:00:11]}  Rd3 {[%clk 0:00:11]} 69. Rh8 {[%clk 0:00:11]}  Rd2+ {[%clk 0:00:12]} 70. Ka1 {[%clk 0:00:12]}  Rd1+ {[%clk 0:00:11]} 71. Ka2 {[%clk 0:00:11]}  b3+ {[%clk 0:00:12]} 0-1


[Site "https://www.chess.com"]

[Event "Titled Tuesday Blitz February 28 Late 2023"]
[White "Svane, Rasmus"]
[Black "Salimova, Nurgyul"]
[WhiteFideId "4657101"]
[BlackFideId "2915138"]
[WhiteElo "2597"]
[BlackElo "2314"]
[Result "1-0"]
[Round "05"]
[TimeControl "180+2"]
[Date "2023.02.28"]
[WhiteClock "0:00:22"]
[BlackClock "0:00:03"]

1. Nf3 {[%clk 0:02:58]}  Nf6 {[%clk 0:02:59]} 2. g3 {[%clk 0:02:57]}  d5 {[%clk 0:02:59]} 3. Bg2 {[%clk 0:02:57]}  g6 {[%clk 0:02:48]} 4. O-O {[%clk 0:02:56]}  Bg7 {[%clk 0:02:49]} 5. c4 {[%clk 0:02:57]}  c6 {[%clk 0:02:47]} 6. Qb3 {[%clk 0:02:57]}  O-O {[%clk 0:02:44]} 7. d4 {[%clk 0:02:57]}  a5 {[%clk 0:02:07]} 8. Rd1 {[%clk 0:02:56]}  dxc4 {[%clk 0:02:01]} 9. Qxc4 {[%clk 0:02:56]}  Be6 {[%clk 0:02:02]} 10. Qc3 {[%clk 0:02:45]}  Bd5 {[%clk 0:01:48]} 11. Qe1 {[%clk 0:02:44]}  Ne4 {[%clk 0:01:32]} 12. Nc3 {[%clk 0:02:35]}  Nxc3 {[%clk 0:01:32]} 13. bxc3 {[%clk 0:02:36]}  Be4 {[%clk 0:01:27]} 14. Bh3 {[%clk 0:02:36]}  Bxf3 {[%clk 0:01:21]} 15. exf3 {[%clk 0:02:37]}  e6 {[%clk 0:01:12]} 16. a4 {[%clk 0:02:36]}  Nd7 {[%clk 0:01:10]} 17. Rb1 {[%clk 0:02:36]}  Nb6 {[%clk 0:01:02]} 18. Qd2 {[%clk 0:02:25]}  Rb8 {[%clk 0:00:53]} 19. Qc2 {[%clk 0:02:23]}  Nd5 {[%clk 0:00:49]} 20. Bd2 {[%clk 0:02:18]}  b5 {[%clk 0:00:47]} 21. Bf1 {[%clk 0:02:10]}  Qd7 {[%clk 0:00:47]} 22. c4 {[%clk 0:02:04]}  bxc4 {[%clk 0:00:45]} 23. Rxb8 {[%clk 0:02:02]}  Rxb8 {[%clk 0:00:44]} 24. Bxa5 {[%clk 0:02:03]}  Qa7 {[%clk 0:00:37]} 25. Be1 {[%clk 0:02:00]}  Bxd4 {[%clk 0:00:34]} 26. Qxc4 {[%clk 0:01:56]}  c5 {[%clk 0:00:30]} 27. Bd3 {[%clk 0:01:40]}  Nb4 {[%clk 0:00:26]} 28. Bc2 {[%clk 0:01:18]}  Nxc2 {[%clk 0:00:25]} 29. Qxc2 {[%clk 0:01:19]}  Rb2 {[%clk 0:00:25]} 30. Qc4 {[%clk 0:01:19]}  Qb7 {[%clk 0:00:23]} 31. Kg2 {[%clk 0:01:17]}  Qb3 {[%clk 0:00:20]} 32. Rxd4 {[%clk 0:00:43]}  cxd4 {[%clk 0:00:18]} 33. Qxd4 {[%clk 0:00:44]}  Rc2 {[%clk 0:00:14]} 34. a5 {[%clk 0:00:42]}  Qd5 {[%clk 0:00:13]} 35. Qb4 {[%clk 0:00:37]}  Qc6 {[%clk 0:00:04]} 36. Qb8+ {[%clk 0:00:32]}  Kg7 {[%clk 0:00:04]} 37. Bb4 {[%clk 0:00:33]}  Rc4 {[%clk 0:00:01]} 38. Qf8+ {[%clk 0:00:28]}  Kf6 {[%clk 0:00:01]} 39. Be7+ {[%clk 0:00:28]}  Ke5 {[%clk 0:00:02]} 40. Qxf7 {[%clk 0:00:28]}  Kd5 {[%clk 0:00:02]} 41. Qxh7 {[%clk 0:00:26]}  Kd4 {[%clk 0:00:02]} 42. Qxg6 {[%clk 0:00:26]}  Rc3 {[%clk 0:00:03]} 43. Bf6+ {[%clk 0:00:26]}  e5 {[%clk 0:00:03]} 44. Qf5 {[%clk 0:00:26]}  Rc2 {[%clk 0:00:03]} 45. Bxe5+ {[%clk 0:00:22]}  Kc4 {[%clk 0:00:03]} 46. Qxc2+ {[%clk 0:00:22]} 1-0


[Site "https://www.chess.com"]

[Event "Titled Tuesday Blitz February 28 Late 2023"]
[White "Yu, Yangyi"]
[Black "Kravtsiv, Martyn"]
[WhiteFideId "8603820"]
[BlackFideId "14113147"]
[WhiteElo "2783"]
[BlackElo "2695"]
[Result "1-0"]
[Round "05"]
[TimeControl "180+2"]
[Date "2023.02.28"]
[WhiteClock "0:00:08"]
[BlackClock "0:00:07"]

1. Nf3 {[%clk 0:02:59]}  Nf6 {[%clk 0:02:58]} 2. c4 {[%clk 0:02:58]}  e6 {[%clk 0:02:57]} 3. Nc3 {[%clk 0:02:57]}  d5 {[%clk 0:02:58]} 4. d4 {[%clk 0:02:57]}  Nbd7 {[%clk 0:02:58]} 5. cxd5 {[%clk 0:02:55]}  exd5 {[%clk 0:02:57]} 6. Bg5 {[%clk 0:02:55]}  Bb4 {[%clk 0:02:55]} 7. e3 {[%clk 0:02:51]}  c5 {[%clk 0:02:55]} 8. Be2 {[%clk 0:02:49]}  Qa5 {[%clk 0:02:53]} 9. O-O {[%clk 0:02:45]}  Bxc3 {[%clk 0:02:52]} 10. bxc3 {[%clk 0:02:44]}  c4 {[%clk 0:02:53]} 11. Nd2 {[%clk 0:02:32]}  Qxc3 {[%clk 0:02:50]} 12. e4 {[%clk 0:02:20]}  Nxe4 {[%clk 0:02:41]} 13. Nxe4 {[%clk 0:02:16]}  dxe4 {[%clk 0:02:42]} 14. Rc1 {[%clk 0:02:11]}  Qa5 {[%clk 0:02:41]} 15. Bd2 {[%clk 0:02:11]}  Qb6 {[%clk 0:02:33]} 16. Rxc4 {[%clk 0:01:59]}  O-O {[%clk 0:02:32]} 17. d5 {[%clk 0:01:58]}  Nf6 {[%clk 0:02:29]} 18. Bc3 {[%clk 0:01:46]}  Bf5 {[%clk 0:02:16]} 19. Bd4 {[%clk 0:01:44]}  Qd8 {[%clk 0:02:04]} 20. Qa1 {[%clk 0:01:11]}  Qxd5 {[%clk 0:01:50]} 21. Rc5 {[%clk 0:01:02]}  Qd7 {[%clk 0:01:15]} 22. Bb5 {[%clk 0:00:55]}  Qd6 {[%clk 0:00:55]} 23. Rxf5 {[%clk 0:00:47]}  Ng4 {[%clk 0:00:55]} 24. g3 {[%clk 0:00:35]}  Qg6 {[%clk 0:00:52]} 25. Rf4 {[%clk 0:00:29]}  f5 {[%clk 0:00:31]} 26. Be2 {[%clk 0:00:24]}  h5 {[%clk 0:00:25]} 27. Rc1 {[%clk 0:00:20]}  Rac8 {[%clk 0:00:23]} 28. Rxc8 {[%clk 0:00:20]}  Rxc8 {[%clk 0:00:24]} 29. Qb2 {[%clk 0:00:19]}  b6 {[%clk 0:00:22]} 30. Qb5 {[%clk 0:00:18]}  Rd8 {[%clk 0:00:16]} 31. Bc3 {[%clk 0:00:13]}  Nh6 {[%clk 0:00:15]} 32. Rh4 {[%clk 0:00:10]}  Ng4 {[%clk 0:00:14]} 33. Bxg4 {[%clk 0:00:09]}  hxg4 {[%clk 0:00:14]} 34. Qc4+ {[%clk 0:00:09]}  Qf7 {[%clk 0:00:07]} 35. Rh8+ {[%clk 0:00:08]} 1-0


[Site "https://www.chess.com"]

[Event "Titled Tuesday Blitz February 28 Late 2023"]
[White "Chigaev, Maksim"]
[Black "Vachier-Lagrave, Maxime"]
[WhiteFideId "4108116"]
[BlackFideId "623539"]
[WhiteElo "2547"]
[BlackElo "2740"]
[Result "0-1"]
[Round "05"]
[TimeControl "180+2"]
[Date "2023.02.28"]
[WhiteClock "0:00:08"]
[BlackClock "0:01:25"]

1. e4 {[%clk 0:02:59]}  c5 {[%clk 0:02:59]} 2. Nf3 {[%clk 0:02:58]}  d6 {[%clk 0:03:00]} 3. d4 {[%clk 0:02:58]}  cxd4 {[%clk 0:03:01]} 4. Nxd4 {[%clk 0:02:58]}  Nf6 {[%clk 0:03:01]} 5. Nc3 {[%clk 0:02:59]}  a6 {[%clk 0:03:02]} 6. Bg5 {[%clk 0:02:57]}  e6 {[%clk 0:03:02]} 7. Qf3 {[%clk 0:02:58]}  Nbd7 {[%clk 0:02:49]} 8. O-O-O {[%clk 0:02:56]}  Qc7 {[%clk 0:02:49]} 9. Bxf6 {[%clk 0:02:52]}  Nxf6 {[%clk 0:02:49]} 10. g4 {[%clk 0:02:53]}  Nd7 {[%clk 0:02:38]} 11. g5 {[%clk 0:02:52]}  b5 {[%clk 0:02:29]} 12. a3 {[%clk 0:02:52]}  Bb7 {[%clk 0:02:29]} 13. Qe3 {[%clk 0:02:52]}  g6 {[%clk 0:02:23]} 14. h4 {[%clk 0:02:48]}  h5 {[%clk 0:02:08]} 15. f4 {[%clk 0:02:44]}  e5 {[%clk 0:01:56]} 16. Ndxb5 {[%clk 0:02:07]}  axb5 {[%clk 0:01:54]} 17. Bxb5 {[%clk 0:02:08]}  Be7 {[%clk 0:01:45]} 18. fxe5 {[%clk 0:00:53]}  O-O {[%clk 0:01:44]} 19. Bxd7 {[%clk 0:00:39]}  Qxd7 {[%clk 0:01:43]} 20. Rhf1 {[%clk 0:00:31]}  Qc7 {[%clk 0:01:25]} 21. Nb5 {[%clk 0:00:28]}  Qc4 {[%clk 0:01:25]} 22. exd6 {[%clk 0:00:11]}  Qxb5 {[%clk 0:01:24]} 23. dxe7 {[%clk 0:00:11]}  Rfe8 {[%clk 0:01:25]} 24. Rf6 {[%clk 0:00:08]} 0-1


[Site "https://www.chess.com"]

[Event "Titled Tuesday Blitz February 28 Late 2023"]
[White "Paravyan, David"]
[Black "Hansen, Eric"]
[WhiteFideId "4194985"]
[BlackFideId "2606771"]
[WhiteElo "2577"]
[BlackElo "2569"]
[Result "1-0"]
[Round "05"]
[TimeControl "180+2"]
[Date "2023.02.28"]
[WhiteClock "0:00:03"]
[BlackClock "0:00:01"]

1. d4 {[%clk 0:03:00]}  Nf6 {[%clk 0:03:00]} 2. c4 {[%clk 0:03:01]}  e6 {[%clk 0:03:00]} 3. Nc3 {[%clk 0:03:01]}  Bb4 {[%clk 0:03:00]} 4. Qc2 {[%clk 0:03:01]}  O-O {[%clk 0:03:00]} 5. e4 {[%clk 0:02:55]}  d5 {[%clk 0:02:53]} 6. e5 {[%clk 0:02:55]}  Ne4 {[%clk 0:02:53]} 7. Nf3 {[%clk 0:02:56]}  c5 {[%clk 0:02:51]} 8. Bd3 {[%clk 0:02:56]}  cxd4 {[%clk 0:02:41]} 9. Nxd4 {[%clk 0:02:57]}  Nd7 {[%clk 0:02:35]} 10. Bf4 {[%clk 0:02:57]}  Ndc5 {[%clk 0:02:25]} 11. O-O {[%clk 0:02:38]}  Bxc3 {[%clk 0:02:02]} 12. bxc3 {[%clk 0:02:37]}  Nxd3 {[%clk 0:02:00]} 13. Qxd3 {[%clk 0:02:37]}  Bd7 {[%clk 0:01:41]} 14. cxd5 {[%clk 0:02:37]}  exd5 {[%clk 0:01:42]} 15. c4 {[%clk 0:02:37]}  Be6 {[%clk 0:01:29]} 16. Rad1 {[%clk 0:02:28]}  Rc8 {[%clk 0:01:21]} 17. f3 {[%clk 0:01:31]}  Nc5 {[%clk 0:01:17]} 18. Qa3 {[%clk 0:01:30]}  Qd7 {[%clk 0:00:53]} 19. Be3 {[%clk 0:01:21]}  b6 {[%clk 0:00:51]} 20. Nxe6 {[%clk 0:01:03]}  fxe6 {[%clk 0:00:51]} 21. cxd5 {[%clk 0:00:46]}  exd5 {[%clk 0:00:51]} 22. Rfe1 {[%clk 0:00:46]}  Ne6 {[%clk 0:00:46]} 23. Rd3 {[%clk 0:00:33]}  Rfd8 {[%clk 0:00:34]} 24. Red1 {[%clk 0:00:33]}  Qb7 {[%clk 0:00:29]} 25. Qb3 {[%clk 0:00:29]}  Rc4 {[%clk 0:00:27]} 26. a4 {[%clk 0:00:26]}  Qc6 {[%clk 0:00:24]} 27. Qb5 {[%clk 0:00:23]}  Nc7 {[%clk 0:00:20]} 28. Qxc6 {[%clk 0:00:17]}  Rxc6 {[%clk 0:00:21]} 29. f4 {[%clk 0:00:16]}  g6 {[%clk 0:00:19]} 30. g4 {[%clk 0:00:13]}  Rc4 {[%clk 0:00:19]} 31. h3 {[%clk 0:00:10]}  Rxa4 {[%clk 0:00:08]} 32. f5 {[%clk 0:00:10]}  d4 {[%clk 0:00:06]} 33. Bg5 {[%clk 0:00:09]}  Rd5 {[%clk 0:00:04]} 34. Bf4 {[%clk 0:00:04]}  Nb5 {[%clk 0:00:03]} 35. Rc1 {[%clk 0:00:03]}  Rc5 {[%clk 0:00:02]} 36. Re1 {[%clk 0:00:02]}  Rc3 {[%clk 0:00:02]} 37. Rd2 {[%clk 0:00:02]}  Rf3 {[%clk 0:00:02]} 38. Bh2 {[%clk 0:00:02]}  gxf5 {[%clk 0:00:03]} 39. e6 {[%clk 0:00:01]}  Kf8 {[%clk 0:00:03]} 40. e7+ {[%clk 0:00:02]}  Ke8 {[%clk 0:00:04]} 41. gxf5 {[%clk 0:00:02]}  Rxf5 {[%clk 0:00:04]} 42. Rg2 {[%clk 0:00:02]}  Kf7 {[%clk 0:00:01]} 43. e8=Q+ {[%clk 0:00:03]} 1-0


[Site "https://www.chess.com"]